Cogmind - Beta 14 X2 @@@ ROGUE MODE // 2024.07.31 @ 20:53:21 Player: Schmee Result: Destroyed by G-34 Mercenary with Small Laser Performance ------------- Evolutions (0) 0 Regions Visited (2) 400 Robots Destroyed (13) 65 Value Destroyed (253) 253 Prototype IDs (0) 0 Alien Tech Used (0) 0 Bonus (0) 0 TOTAL SCORE: 718 Bonus ------- None Cogmind --------- Core Integrity 0/250 Matter 200/300 Energy 242/250 System Corruption 5% Temperature Hot (277) Movement Rolling (155) Ox5 Location -10/Mines Parts ------- > --- POWER (1) -------- Ion Engine > --- PROPULSION (2) --- Light Treads Wheel > --- UTILITY (2) ------ High-capacity Storage Unit Light Armor Plating > --- WEAPON (2) ------- EM Pulse Gun Medium Laser > --- INVENTORY (20) --- Light Deuterium Engine Light Treads Light Treads Light Treads Aluminum Leg Aluminum Leg Compact Wheel Small Storage Unit Large Matter Pod (150) High-capacity Matter Pod (200) Sensor Array Sensor Array Tractor Beam Peak State ------------ > --- POWER ------------ Light Ion Engine > --- PROPULSION ------- Aluminum Leg Aluminum Leg > --- UTILITY ---------- Improved Heat Sink Small Storage Unit > --- WEAPON ----------- Medium Laser Assault Rifle > --- INVENTORY -------- Ion Engine Light Treads Light Treads Wheel Compact Wheel EM Pulse Gun [Rating: 9] Favorites ----------- Power Light Ion Engine Engine Light Ion Engine Propulsion Light Treads Treads Light Treads Leg Aluminum Leg Wheel Wheel Utility Light Armor Plating Device Improved Heat Sink Storage High-capacity Storage Unit Protection Light Armor Plating Weapon Medium Laser Energy Gun Medium Laser Ballistic Gun Assault Rifle Build | -11 -10 -10 ------- Run | Yrd Mat Min Slots Evolved . | . . . Power . | . . . Propulsion . | . . . Utility . | . . . Weapon . | . . . Parts Attached 16 | . 7 9 Power 2 | . . 2 Engine 2 | . . 2 Core . | . . . Reactor . | . . . Propulsion 5 | . 3 2 Treads 3 | . 2 1 Leg 1 | . 1 . Wheel 1 | . . 1 Hover . | . . . Flight . | . . . Utility 7 | . 4 3 Device 2 | . 2 . Storage 1 | . 1 . Processor . | . . . Hackware . | . . . Protection 4 | . 1 3 Artifact . | . . . Weapon 2 | . . 2 Energy Gun 2 | . . 2 Energy Cannon . | . . . Ballistic Gun . | . . . Ballistic Cannon . | . . . Launcher . | . . . Special Weapon . | . . . Impact Weapon . | . . . Slashing Weapon . | . . . Piercing Weapon . | . . . Special Melee Weapon . | . . . Unidentified Prototypes . | . . . Parts Lost 8 | . . 8 Power 2 | . . 2 Propulsion 1 | . . 1 Utility 3 | . . 3 Weapon 2 | . . 2 Highest Loss Streak 7 | . . 7 To Critical Strikes . | . . . Average Slot Usage (%) 98 | . 99 90 Engine 13 | . 14 12 Treads 23 | . 23 25 Leg 3 | . 4 . Device 1 | . 1 . Storage 14 | . 14 14 Protection 12 | . 12 10 Energy Gun 14 | . 14 24 Ballistic Gun 13 | . 14 . Naked Turns . | . . . Heaviest Build 52 | 12 50 52 Greatest Support 40 | 20 40 40 Greatest Overweight (x) 5 | . 1 5 Average Overweight (x) . | . . 1 Largest Inventory Capacity 20 | 8 20 20 Average Capacity 18 | 8 18 20 Most Carried 20 | 6 20 20 Average Carried 13 | 6 13 15 Final Capacity 20 | 8 20 20 Final Carried 20 | 6 20 13 Class Distribution -------------------- 100% | Mutant Dominant Class ---------------- Mutant | -10/Materials Mutant | -10/Mines Resources | -11 -10 -10 ----------- Run | Yrd Mat Min Matter Collected 782 | 200 537 45 Remotely . | . . . Salvage Created 535 | . 525 10 Parts 25 | . 25 . Haulers Intercepted 2 | . 2 . Recyclers Shooed . | . . . Parts Field Recycled . | . . . Retrieved Matter . | . . . Parts Self-Destructed . | . . . Prevented . | . . . Kills | -11 -10 -10 ------- Run | Yrd Mat Min Combat Hostiles Destroyed 9 | . 8 1 Guns 9 | . 8 1 Classes Destroyed 7 | . 6 1 Worker 1 | . 1 . Hauler 2 | . 2 . Recycler 1 | . 1 . Watcher 1 | . 1 . Swarmer 3 | . 3 . Grunt 5 | . 5 . Assembled 1 | . . 1 Best Kill Streak 4 | . 4 1 Combat Bots Only 3 | . 3 1 Max Kills in Single Turn 1 | . 1 1 Gunslinging . | . . . Exploded . | . . . Melee . | . . . Uniques/NPCs Destroyed . | . . . Combat | -11 -10 -10 -------- Run | Yrd Mat Min Hostile Shots Fired 78 | . 39 39 Missed 14 | . 10 4 Damage Taken 1227 | . 344 883 Core 260 | . 92 168 Absorbed by Shields . | . . . Core Remaining (%) 100 | 100 . . Volleys Fired 49 | . 39 10 Largest 2 | . 2 2 Hottest 90 | . 70 90 Shots Fired 98 | . 78 20 Gun 98 | . 78 20 Cannon . | . . . Launcher . | . . . Special . | . . . Kinetic 41 | . 39 2 Thermal 49 | . 39 10 Explosive . | . . . Electromagnetic 8 | . . 8 Robot Hit Streak 7 | . 7 3 Robot Miss Streak 7 | . 7 2 Penetration Max . | . . . Secondary Targets . | . . . Shots Hit Robots 56 | . 44 12 Core Hits 32 | . 25 7 Critical Kills . | . . . Critical Parts Destroyed . | . . . Critical Strikes 1 | . 1 . Burn 1 | . 1 . Melee Attacks . | . . . Impact . | . . . Slashing . | . . . Piercing . | . . . Sneak Attacks . | . . . Combat Hostiles . | . . . Follow-up Attacks . | . . . Damage Inflicted 764 | . 606 158 Guns 763 | . 605 158 Cannons . | . . . Explosions . | . . . Melee . | . . . Ramming 1 | . 1 . Kinetic 327 | . 302 25 Thermal 381 | . 303 78 Explosive . | . . . Electromagnetic 55 | . . 55 Impact . | . . . Slashing . | . . . Piercing . | . . . Highest Corruption 5 | . . 5 Average Corruption 5 | . . 5 Corruption Purged . | . . . Corruption Blocked . | . . . Effects 2 | . . 2 Matter Fused 1 | . . 1 Heat Flow Errors 1 | . . 1 Overload Shots . | . . . Overflow Damage . | . . . Projectiles . | . . . Explosions . | . . . Melee . | . . . Knockbacks . | . . . Impact . | . . . Kinetic . | . . . Secondary . | . . . Self-Inflicted Damage . | . . . Shots . | . . . Rammed 1 | . 1 . Targets Rammed 1 | . 1 . Kicked . | . . . Crushed . | . . . Highest Temperature 370 | . 235 370 Average Temperature 76 | . 55 138 Received Heat Transfer 304 | . 138 166 Effects 3 | . . 3 Shutdowns 1 | . . 1 Matter Decay 2 | . . 2 Siege Activations . | . . . Robots Corrupted . | . . . Combat Hostiles . | . . . Parts Fried . | . . . Impact Corruptions . | . . . Robots Melted . | . . . Combat Hostiles . | . . . Parts Melted . | . . . Heat Transferred 1184 | . 962 222 Parts Sabotaged . | . . . Parts Stolen . | . . . Parts Stripped . | . . . Power Chain Reactions . | . . . Alert | -11 -10 -10 ------- Run | Yrd Mat Min Peak Influence 178 | . 178 5 Initial 5 | . . 5 Average 31 | . 33 . Maximum Alert Level 1 | . 1 . Low Security (%) 99 | 100 99 100 Level 1 . | . . . Level 2 . | . . . Level 3 . | . . . Level 4 . | . . . Level 5 . | . . . High Security . | . . . Max Security . | . . . Squads Dispatched 2 | . 2 . Investigation . | . . . Extermination . | . . . Reinforcement 2 | . 2 . Assault . | . . . Garrison . | . . . Intercept . | . . . Searches Triggered . | . . . Construction Impeded . | . . . Haulers Reinforced . | . . . Active Scanning Responses . | . . . Cargo Convoy Interrupts . | . . . Stealth | -11 -10 -10 --------- Run | Yrd Mat Min Distress Signals 2 | . 2 . Communications Jammed . | . . . Distress Signals . | . . . Times Spotted 41 | . 22 19 Peak Tracking Total 15 | . 4 15 Tactical Retreats 1 | . . 1 Traps | -11 -10 -10 ------- Run | Yrd Mat Min Traps Triggered . | . . . Indirectly . | . . . Trap Hack Attempts . | . . . Triggered . | . . . Disarmed . | . . . Reprogrammed . | . . . Reused . | . . . Traps Extracted . | . . . Installed . | . . . Triggered . | . . . Machines | -11 -10 -10 ---------- Run | Yrd Mat Min Machines Disabled . | . . . Max in Single Turn . | . . . Machines Repaired . | . . . Machines Dismantled . | . . . Machines Sabotaged . | . . . Overloaded Fab Kills . | . . . Hacking | -11 -10 -10 --------- Run | Yrd Mat Min Machines Accessed 5 | . 5 . Terminals 5 | . 5 . Fabricators . | . . . Repair Stations . | . . . Recycling Units . | . . . Scanalyzers . | . . . Garrison Access . | . . . Total Hacks 13 | . 13 . Successful 3 | . 3 . Failed 10 | . 10 . Catastrophic . | . . . Database Lockouts . | . . . Manual 13 | . 13 . Terminals 13 | . 13 . Fabricators . | . . . Repair Stations . | . . . Recycling Units . | . . . Scanalyzers . | . . . Garrison Access . | . . . Terminal Hacks 1 | . 1 . Robot Analysis 1 | . 1 . Fabricator Hacks . | . . . Repair Station Hacks . | . . . Recycling Unit Hacks . | . . . Scanalyzer . | . . . Garrison Access Hacks . | . . . Unauthorized Hacks 2 | . 2 . Terminals 2 | . 2 . Botnet 2 | . 2 . Fabricators . | . . . Repair Stations . | . . . Recycling Units . | . . . Scanalyzers . | . . . Garrison Access . | . . . Data Cores Recovered . | . . . Used . | . . . Hacking Detections 5 | . 5 . Full Trace Events . | . . . Feedback Events . | . . . Feedback Blocked . | . . . Robot Schematics Acquired . | . . . Robots Built . | . . . Authchips . | . . . Time . | . . . Total Robot Build Rating . | . . . Part Schematics Acquired . | . . . Parts Built . | . . . Authchips . | . . . Time . | . . . Total Part Build Rating . | . . . Parts Repaired . | . . . Time . | . . . Parts Recycled . | . . . Recycled Matter . | . . . Retrieved Matter . | . . . Retrieved Components . | . . . Parts Scanalyzed . | . . . Part Schematics Acquired . | . . . Parts Damaged . | . . . Bothacking | -11 -10 -10 ------------ Run | Yrd Mat Min Used RIF Installer . | . . . Robots Hacked . | . . . Non-combat . | . . . Combat . | . . . Robot Hacks Applied . | . . . Relay Couplers Released . | . . . Fabnet Peak Effective % . | . . . Robots Rewired . | . . . Allies Hacked . | . . . Hacks Repelled . | . . . Allies | -11 -10 -10 -------- Run | Yrd Mat Min Total Allies . | . . . Largest Group . | . . . Highest-Rated Group . | . . . Highest-Rated Ally . | . . . Total Orders . | . . . Ally Attacks . | . . . Total Damage . | . . . Kills . | . . . Allies Corrupted . | . . . Allies Melted . | . . . Intel | -11 -10 -10 ------- Run | Yrd Mat Min Robot Analysis Total 1 | . 1 . Derelict Logs Recovered . | . . . Drone Launches . | . . . Drone Recoveries . | . . . Exploration | -11 -10 -10 ------------- Run | Yrd Mat Min Turns Passed 1930 | 2 1807 121 Spaces Moved 794 | 2 758 34 Core . | . . . Treads 637 | . 605 32 Legs 155 | 2 153 . Wheels 2 | . . 2 Hover . | . . . Flight . | . . . Fastest Speed 120 | 120 120 155 Average Speed 216 | 120 215 235 Slowest Speed 240 | 120 240 240 Overloaded Moves . | . . . Propulsion Burnouts . | . . . Robots Hopped . | . . . Cave-ins Triggered . | . . . Exploration Rate (%) 35 | 2 93 12 Regions Visited 2 Branch Regions 1 Pre-discovered Areas . | . . . Known Exits Taken . | . . . Unknown Exits Taken 2 | 1 1 . Scrap Searched . | . . . Spaces Dug . | . . . Terrain Destroyed . | . . . Melee . | . . . Projectile . | . . . AOE . | . . . Terrain Rammed . | . . . Walls Destroyed . | . . . Machines Disabled . | . . . Actions | -11 -10 -10 --------- Run | Yrd Mat Min Total 905 | 1 850 54 Wait 29 | . 29 . Move 792 | 1 757 34 Hop . | . . . Pick Up 14 | . 13 1 Fast Attach 3 | . 3 . Attach 9 | . 1 8 Detach 2 | . 2 . Swap 4 | . 3 1 Drop 2 | . 2 . Fire 49 | . 39 10 Melee . | . . . Ram . | . . . Kick . | . . . Crush 1 | . 1 . Escape Stasis . | . . . Rewire . | . . . Trap . | . . . Miscellaneous . | . . . Route ------- -11/Scrapyard -10/Materials (discovered 6 exits: [*Mat x3] / [*Min x2] / [*Sub]) -10/Mines History --------- Turn | Location | Event 1 | -11/Scrapyard | Discovered new exit (range 1) 3 | -11/Scrapyard | Entered Materials 152 | -10/Materials | Discovered new exit (range 16) 301 | -10/Materials | Build established: Mutant 550 | -10/Materials | Discovered new exit (range 16) 725 | -10/Materials | Discovered new exit (range 14) 806 | -10/Materials | Discovered new exit (range 3) 1071 | -10/Materials | Discovered new exit (range 7) 1287 | -10/Materials | Discovered new exit (range 8) 1810 | -10/Materials | Entered Mines 1811 | -10/Mines | Assembled infested the area 1827 | -10/Mines | Core integrity fell below 50% 1849 | -10/Mines | Met 8R-AWN 1852 | -10/Mines | Core integrity fell below 20% 1890 | -10/Mines | Lost 7 parts (2p1n2u2w) 1931 | -10/Mines | Destroyed by G-34 Mercenary with Small Laser Last Messages --------------- 01884_ HV Slug penetrates as-77571. 01884_ as-77571 suffers critical hit (Destroy). 01884_ HV Slug penetrates as-77571. 01884_ as-77571 suffers critical hit (Destroy). 01884_ as-77571 destroyed. 01884_ U-05 Engineer lays Concrete. 01885_ U-05 Engineer builds a Wall. 01888_ The unstable cave ceiling collapses. 01889_ U-05 Engineer builds a Wall. 01891_ System corrupted: Matter fused (-6). 01892_ The unstable cave ceiling collapses. 01895_ U-05 Engineer lays Concrete. 01897_ The unstable cave ceiling collapses. 01897_ U-05 Engineer builds a Wall. 01898_ The unstable cave ceiling collapses. 01916_ System corrupted: Heat flow error (+234). 01922_ Overheating: Matter decay (-35). 01924_ Power failure, Ion Engine shutdown. 01924_ Overheating: Matter decay (-44). 01925_ Lgt. Armor Plating destroyed. Map ----- +----------------------------------------------------+ | ????????????????????????????????????????? | | ????????????????????????????????????????? | | ????????????????????????????????????????? | | ????????????????????????????????????????? | | ????????????????????????????????????????? | | ????????????????????????????????????????? | | ????????????????????????????????????????? | | ????????????????????????????????????????? | | ????????????????????????????????????????? | | ????????????????????????????????????????? | | ????????????????????????????????????????? | | ????????????????????????????????????????? | | ????????????????????????????????????????? | | ????????????????????????????????????????? | | ????????????????????????????????????????? | | ????????????????????????????????????????? | | ????????????????????????????????????????? | | ?????????????????????####???????????????? | | ????????????????????? " #?????????????? ? | | ?????????????????????#%" ????????????? ?? | | ?????????????????????#" #???????????? ??? | | ?????????????????????# #??????????? ???? | | ???????????????????### #??????????%#???? | | ???????????????????? #????????? #???? | | ???????????########### #?######## #???? | | ???????????# @ gg ### % #???? | | ???????????# #######;# # ## ### #???? | | ??????????????????# #" # # # # #???? | | ??????????????????# # % ## #???? | | ?????????????????? # #???? | | ?????????????????### ## #???? | | ???????????????????# #### #???? | | ???????????????????# # ?? | | ???????????????????## %%% ?% | | ???????????????????# ####" ?? | | ?????????????????? % #??? "## | | ???????????????? % %######???# ## #?? | | ???????????????# ?????????? #??#?? | | ???????????????#" ?????????? ????? | | ???????????????## ??????????? #???? | | ????????????????# ??????????? ##???? | | ????????????????## ???????????###????? | | ?????????????????### ???????????????????? | | ???????????????????##???????????????????? | | ????????????????????????????????????????? | | | | | | | | | | | +----------------------------------------------------+ Best States ------------- Heat Dissipation 39 Energy Generation 10 Energy Capacity 250 Matter Stores 300 Matter Capacity 300 Sight Range 16 Robot Scan Range 14 Terrain Scan Density 10 Armor Coverage 150 Evasion (%) 55 Recoil Reduction 2 Item Schematics ----------------- None Robot Schematics ------------------ None Fabricated ------------ Nothing Alien Tech Used ----------------- None Achievements -------------- None Challenges ------------ None Game ------ Seed NeutrinoHelicalCycler Manual? 0 Play Time 00:13:16 Cumulative 123.7 hours Start 2024.07.31 @ 20:43:22 End 2024.07.31 @ 20:53:21 Sessions 1 Manual Loads 0 Difficulty Rogue Special Mode None Game No. 65 Rogue 63 Adventurer 0 Explorer 2 Win Type - Total 8 Types 8/0/0/0/0/0/0/0/0 Lore% 45 Gallery% 65 Achievement% 57 Wizard Run 0 Options --------- Layout 0 ASCII 0 Keyboard 1 Movement Numpad Keybinds 0 Fullscreen 1 Font 24/Smallcaps Map View 76x50 Zoom Use 0% Tactical HUD 1 Map Filters NONE Filters NONE Steam 1 RUN: 647878d9-fc00-4fc4-8435-faeed50400c7